[Event "Early-Titled-Tuesday-Blitz-February-13-2024"]
[Site "Chess.com"]
[Date "2024.02.13"]
[Round "1"]
[White "DanielDardha2005"]
[Black "maicolbenavides"]
[Result "1-0"]
[WhiteElo "2900"]
[BlackElo "2495"]
[TimeControl "180+1"]
[EndTime "8:03:37 PST"]
[Termination "DanielDardha2005 won by resignation"]

1. d4 {[%clk 0:02:59.4]} 1... Nf6 {[%clk 0:03:00]} 2. Bg5 {[%clk 0:02:58.2]}
2... Ne4 {[%clk 0:02:59.4]} 3. h4 {[%clk 0:02:54.8]} 3... c5 {[%clk 0:02:51.4]}
4. dxc5 {[%clk 0:02:53.1]} 4... Qa5+ {[%clk 0:02:47.6]} 5. Nd2 {[%clk
0:02:51.7]} 5... Nxd2 {[%clk 0:02:24.4]} 6. Qxd2 {[%clk 0:02:51]} 6... Qxc5
{[%clk 0:02:25.3]} 7. O-O-O {[%clk 0:02:50.8]} 7... Nc6 {[%clk 0:02:25.3]} 8. e4
{[%clk 0:02:47.4]} 8... d6 {[%clk 0:02:24.9]} 9. Be3 {[%clk 0:02:47.3]} 9... Qa5
{[%clk 0:02:22.4]} 10. Qxa5 {[%clk 0:02:45.6]} 10... Nxa5 {[%clk 0:02:23.3]} 11.
h5 {[%clk 0:02:43.8]} 11... h6 {[%clk 0:02:21.1]} 12. Nh3 {[%clk 0:02:42.4]}
12... Bd7 {[%clk 0:02:17.7]} 13. Nf4 {[%clk 0:02:42]} 13... Nc6 {[%clk
0:02:14.7]} 14. Nd5 {[%clk 0:02:41.3]} 14... O-O-O {[%clk 0:02:14]} 15. f3
{[%clk 0:02:39.4]} 15... e6 {[%clk 0:02:12.6]} 16. Nc3 {[%clk 0:02:39.4]} 16...
a6 {[%clk 0:02:09.4]} 17. Na4 {[%clk 0:02:38.9]} 17... b5 {[%clk 0:02:08]} 18.
Nb6+ {[%clk 0:02:38.4]} 18... Kb7 {[%clk 0:02:08.5]} 19. Nxd7 {[%clk 0:02:39.1]}
19... Rxd7 {[%clk 0:02:09.4]} 20. Be2 {[%clk 0:02:39.2]} 20... Be7 {[%clk
0:02:08.2]} 21. f4 {[%clk 0:02:39.2]} 21... e5 {[%clk 0:02:03.9]} 22. g3 {[%clk
0:02:36]} 22... Rc8 {[%clk 0:02:02.3]} 23. Bg4 {[%clk 0:02:35.8]} 23... Rdc7
{[%clk 0:01:57]} 24. Bxc8+ {[%clk 0:02:34.8]} 24... Rxc8 {[%clk 0:01:57.9]} 25.
a3 {[%clk 0:02:26.4]} 25... Na5 {[%clk 0:01:53.5]} 26. Kb1 {[%clk 0:02:13.7]}
26... Nc4 {[%clk 0:01:53]} 27. Bc1 {[%clk 0:02:11.8]} 27... exf4 {[%clk
0:01:52.5]} 28. gxf4 {[%clk 0:02:11.4]} 28... Bf6 {[%clk 0:01:52.6]} 29. b3
{[%clk 0:02:09]} 1-0

[Event "Early-Titled-Tuesday-Blitz-February-13-2024"]
[Site "Chess.com"]
[Date "2024.02.13"]
[Round "1"]
[White "Amirreza_p"]
[Black "ljuks68"]
[Result "1-0"]
[WhiteElo "2743"]
[BlackElo "2412"]
[TimeControl "180+1"]
[EndTime "8:03:39 PST"]
[Termination "Amirreza_p won by resignation"]

1. e4 {[%clk 0:03:00.9]} 1... e6 {[%clk 0:03:00]} 2. d4 {[%clk 0:03:00.5]} 2...
d5 {[%clk 0:03:00.7]} 3. exd5 {[%clk 0:03:00.6]} 3... exd5 {[%clk 0:03:00.9]} 4.
Bd3 {[%clk 0:03:01.3]} 4... Nf6 {[%clk 0:03:01.5]} 5. Nf3 {[%clk 0:02:59.8]}
5... c5 {[%clk 0:03:02]} 6. O-O {[%clk 0:02:58.6]} 6... Nc6 {[%clk 0:03:02.3]}
7. Re1+ {[%clk 0:02:58.5]} 7... Be7 {[%clk 0:03:02.9]} 8. dxc5 {[%clk
0:02:58.9]} 8... O-O {[%clk 0:03:03.2]} 9. Nc3 {[%clk 0:02:56.5]} 9... Bxc5
{[%clk 0:03:02.9]} 10. Bg5 {[%clk 0:02:57]} 10... Be6 {[%clk 0:03:03.4]} 11. Qd2
{[%clk 0:02:43.3]} 11... Be7 {[%clk 0:02:54.4]} 12. Ne5 {[%clk 0:02:18.9]} 12...
Nd7 {[%clk 0:01:58.1]} 13. Bxe7 {[%clk 0:02:17.7]} 13... Qxe7 {[%clk 0:01:56.6]}
14. Nxd5 {[%clk 0:02:06.5]} 14... Qd8 {[%clk 0:01:28.8]} 15. Nxc6 {[%clk
0:02:02.2]} 15... bxc6 {[%clk 0:01:28.9]} 16. Nf4 {[%clk 0:02:02.6]} 16... Bd5
{[%clk 0:01:25.7]} 17. c4 {[%clk 0:01:55.6]} 1-0

[Event "Early-Titled-Tuesday-Blitz-February-13-2024"]
[Site "Chess.com"]
[Date "2024.02.13"]
[Round "1"]
[White "Stewie_89"]
[Black "rcmz"]
[Result "1-0"]
[WhiteElo "2592"]
[BlackElo "2190"]
[TimeControl "180+1"]
[EndTime "8:04:01 PST"]
[Termination "Stewie_89 won by resignation"]

1. e4 {[%clk 0:03:00.9]} 1... a6 {[%clk 0:02:57.3]} 2. d4 {[%clk 0:02:59.5]}
2... b5 {[%clk 0:02:56.8]} 3. Bd3 {[%clk 0:02:58.5]} 3... Bb7 {[%clk 0:02:56.9]}
4. Nf3 {[%clk 0:02:58.7]} 4... e6 {[%clk 0:02:57.2]} 5. a4 {[%clk 0:02:58]} 5...
b4 {[%clk 0:02:56.4]} 6. Bf4 {[%clk 0:02:56]} 6... c5 {[%clk 0:02:55.8]} 7. Nbd2
{[%clk 0:02:53]} 7... d6 {[%clk 0:02:55]} 8. dxc5 {[%clk 0:02:45.1]} 8... dxc5
{[%clk 0:02:54.6]} 9. a5 {[%clk 0:02:45.7]} 9... Nd7 {[%clk 0:02:51]} 10. Nc4
{[%clk 0:02:43.6]} 10... Ngf6 {[%clk 0:02:50.1]} 11. Qe2 {[%clk 0:02:42.8]}
11... Be7 {[%clk 0:02:46.8]} 12. Nd6+ {[%clk 0:02:41.9]} 12... Bxd6 {[%clk
0:02:46]} 13. Bxd6 {[%clk 0:02:42.8]} 13... Qc8 {[%clk 0:02:44.3]} 14. e5 {[%clk
0:02:35.5]} 14... Nd5 {[%clk 0:02:40.3]} 15. O-O {[%clk 0:02:17.7]} 15... Nf4
{[%clk 0:02:34.1]} 16. Qe3 {[%clk 0:02:16.3]} 16... Nxd3 {[%clk 0:02:30.8]} 17.
cxd3 {[%clk 0:02:15.5]} 17... Qc6 {[%clk 0:02:29.5]} 18. Rfc1 {[%clk 0:02:10.4]}
18... Rc8 {[%clk 0:02:28.5]} 19. Qg5 {[%clk 0:02:07]} 19... Qxd6 {[%clk
0:02:09.7]} 20. exd6 {[%clk 0:02:06.4]} 20... O-O {[%clk 0:02:09.8]} 21. Qe7
{[%clk 0:01:59.2]} 21... Rcd8 {[%clk 0:02:01.6]} 22. d4 {[%clk 0:01:57.8]} 22...
Bxf3 {[%clk 0:01:53.8]} 23. gxf3 {[%clk 0:01:57.2]} 23... Rfe8 {[%clk
0:01:53.9]} 24. Qh4 {[%clk 0:01:57.7]} 24... cxd4 {[%clk 0:01:49.9]} 25. Qxd4
{[%clk 0:01:54.7]} 25... Rb8 {[%clk 0:01:48.7]} 26. Rc7 {[%clk 0:01:52.3]} 26...
Nf6 {[%clk 0:01:48.4]} 27. d7 {[%clk 0:01:49.4]} 27... Red8 {[%clk 0:01:47.4]}
28. Rac1 {[%clk 0:01:50]} 28... Kf8 {[%clk 0:01:38.8]} 29. Qd6+ {[%clk
0:01:48.4]} 29... Kg8 {[%clk 0:01:37.5]} 30. Rc8 {[%clk 0:01:48.8]} 1-0

[Event "Early-Titled-Tuesday-Blitz-February-13-2024"]
[Site "Chess.com"]
[Date "2024.02.13"]
[Round "1"]
[White "VomDingJetztHer"]
[Black "Zhigalko_Sergei"]
[Result "0-1"]
[WhiteElo "2519"]
[BlackElo "2962"]
[TimeControl "180+1"]
[EndTime "8:04:05 PST"]
[Termination "Zhigalko_Sergei won by resignation"]

1. e4 {[%clk 0:03:00.9]} 1... c5 {[%clk 0:02:46.3]} 2. Nf3 {[%clk 0:03:00]} 2...
Nc6 {[%clk 0:02:02.5]} 3. Bb5 {[%clk 0:02:59.8]} 3... Nf6 {[%clk 0:02:01.7]} 4.
d3 {[%clk 0:02:56.1]} 4... Qa5+ {[%clk 0:02:01.4]} 5. Nc3 {[%clk 0:02:56.2]}
5... Nd4 {[%clk 0:02:01.8]} 6. Bc4 {[%clk 0:02:47.9]} 6... b5 {[%clk 0:02:02.1]}
7. Nxd4 {[%clk 0:02:40.6]} 7... cxd4 {[%clk 0:02:01.4]} 8. Bd2 {[%clk
0:02:18.5]} 8... bxc4 {[%clk 0:01:53]} 9. Nd5 {[%clk 0:02:15.8]} 9... c3 {[%clk
0:01:48.1]} 10. bxc3 {[%clk 0:02:15.6]} 10... Nxd5 {[%clk 0:01:48.1]} 11. exd5
{[%clk 0:02:10.5]} 11... dxc3 {[%clk 0:01:46.8]} 12. Be3 {[%clk 0:02:08.3]}
12... Qxd5 {[%clk 0:01:46.8]} 13. O-O {[%clk 0:02:08.8]} 13... e6 {[%clk
0:01:43]} 14. Qg4 {[%clk 0:02:02.9]} 14... h5 {[%clk 0:01:41.7]} 15. Qa4 {[%clk
0:02:01.8]} 15... Bb7 {[%clk 0:01:37.7]} 16. f3 {[%clk 0:02:01.7]} 16... Bc6
{[%clk 0:01:35.2]} 17. Qf4 {[%clk 0:01:47.9]} 17... Bd6 {[%clk 0:01:31.1]} 18.
Qh4 {[%clk 0:01:48.2]} 18... O-O {[%clk 0:01:26]} 19. Rae1 {[%clk 0:01:46.5]}
19... Rfb8 {[%clk 0:01:25.1]} 20. Bd4 {[%clk 0:01:41]} 20... Rb4 {[%clk
0:01:23.1]} 21. Re4 {[%clk 0:01:40.2]} 21... Rxd4 {[%clk 0:01:22.9]} 0-1

[Event "Early-Titled-Tuesday-Blitz-February-13-2024"]
[Site "Chess.com"]
[Date "2024.02.13"]
[Round "1"]
[White "disciplinedbrat"]
[Black "yosephtaher"]
[Result "0-1"]
[WhiteElo "2504"]
[BlackElo "2914"]
[TimeControl "180+1"]
[EndTime "8:04:05 PST"]
[Termination "yosephtaher won by checkmate"]

1. e4 {[%clk 0:03:00.9]} 1... c5 {[%clk 0:02:56.5]} 2. Nf3 {[%clk 0:03:00.5]}
2... g6 {[%clk 0:02:55]} 3. c3 {[%clk 0:02:59.2]} 3... Nf6 {[%clk 0:02:54.7]} 4.
e5 {[%clk 0:02:56]} 4... Nd5 {[%clk 0:02:55.2]} 5. d4 {[%clk 0:02:56.7]} 5...
cxd4 {[%clk 0:02:56.1]} 6. cxd4 {[%clk 0:02:55.9]} 6... Bg7 {[%clk 0:02:56.7]}
7. Bc4 {[%clk 0:02:52.8]} 7... Nb6 {[%clk 0:02:56.7]} 8. Bb3 {[%clk 0:02:52.1]}
8... O-O {[%clk 0:02:56.2]} 9. O-O {[%clk 0:02:52.6]} 9... d6 {[%clk 0:02:55.1]}
10. Nc3 {[%clk 0:02:48.6]} 10... Bg4 {[%clk 0:02:54.2]} 11. Re1 {[%clk
0:02:46.7]} 11... Nc6 {[%clk 0:02:53.4]} 12. exd6 {[%clk 0:02:39.9]} 12... Qxd6
{[%clk 0:02:52.1]} 13. d5 {[%clk 0:02:37.6]} 13... Ne5 {[%clk 0:02:51.3]} 14.
Ne4 {[%clk 0:02:33.7]} 14... Bxf3 {[%clk 0:02:48.3]} 15. gxf3 {[%clk 0:02:26.1]}
15... Qd8 {[%clk 0:02:48.4]} 16. f4 {[%clk 0:02:25.2]} 16... Ned7 {[%clk
0:02:47.6]} 17. Qf3 {[%clk 0:02:19.7]} 17... a5 {[%clk 0:02:44.1]} 18. a3 {[%clk
0:02:18.3]} 18... a4 {[%clk 0:02:42.2]} 19. Ba2 {[%clk 0:02:18.8]} 19... Nf6
{[%clk 0:02:42.7]} 20. Nxf6+ {[%clk 0:02:17.3]} 20... Bxf6 {[%clk 0:02:43.6]}
21. Be3 {[%clk 0:02:16.3]} 21... Ra5 {[%clk 0:02:40.8]} 22. Rad1 {[%clk
0:02:14]} 22... Rb5 {[%clk 0:02:39.2]} 23. f5 {[%clk 0:02:07.6]} 23... Rxb2
{[%clk 0:02:37.5]} 24. Re2 {[%clk 0:02:03.5]} 24... Rxe2 {[%clk 0:02:35.4]} 25.
Qxe2 {[%clk 0:02:03.6]} 25... Qd6 {[%clk 0:02:36.1]} 26. Qb5 {[%clk 0:01:58.8]}
26... Nd7 {[%clk 0:02:29.4]} 27. fxg6 {[%clk 0:01:58.3]} 27... hxg6 {[%clk
0:02:29.2]} 28. Qxb7 {[%clk 0:01:58.6]} 28... Ne5 {[%clk 0:02:27.5]} 29. Qb6
{[%clk 0:01:51.8]} 29... Nf3+ {[%clk 0:02:26.6]} 30. Kg2 {[%clk 0:01:49.4]}
30... Qxh2+ {[%clk 0:02:27.3]} 31. Kxf3 {[%clk 0:01:49.7]} 31... Qh5+ {[%clk
0:02:28.1]} 32. Kg2 {[%clk 0:01:47.8]} 32... Qxd1 {[%clk 0:02:29]} 33. Qb4
{[%clk 0:01:39.3]} 33... Kg7 {[%clk 0:02:27.3]} 34. Bc4 {[%clk 0:01:31.6]} 34...
Rh8 {[%clk 0:02:27.1]} 35. Bf1 {[%clk 0:01:32]} 35... Qh5 {[%clk 0:02:26.3]} 36.
Bd3 {[%clk 0:01:19.3]} 36... Qh1+ {[%clk 0:02:24.8]} 37. Kg3 {[%clk 0:01:19.5]}
37... Qh3+ {[%clk 0:02:25.6]} 38. Kf4 {[%clk 0:01:19.3]} 38... Rh4# {[%clk
0:02:26.5]} 0-1

[Event "Early-Titled-Tuesday-Blitz-February-13-2024"]
[Site "Chess.com"]
[Date "2024.02.13"]
[Round "1"]
[White "GulamaliRises"]
[Black "Iuckyducky"]
[Result "1-0"]
[WhiteElo "2626"]
[BlackElo "2268"]
[TimeControl "180+1"]
[EndTime "8:04:10 PST"]
[Termination "GulamaliRises won by resignation"]

1. e4 {[%clk 0:02:58.7]} 1... c5 {[%clk 0:02:56.2]} 2. Nf3 {[%clk 0:02:58.1]}
2... d6 {[%clk 0:02:53.9]} 3. d4 {[%clk 0:02:57.9]} 3... cxd4 {[%clk 0:02:54.8]}
4. Qxd4 {[%clk 0:02:56.4]} 4... Nc6 {[%clk 0:02:54.5]} 5. Bb5 {[%clk 0:02:56.6]}
5... Bd7 {[%clk 0:02:52.9]} 6. Bxc6 {[%clk 0:02:56.4]} 6... Bxc6 {[%clk
0:02:53.8]} 7. Nc3 {[%clk 0:02:56.9]} 7... Nf6 {[%clk 0:02:53.9]} 8. Bg5 {[%clk
0:02:56.3]} 8... e5 {[%clk 0:02:31.3]} 9. Qd3 {[%clk 0:02:55.9]} 9... Be7 {[%clk
0:02:31.4]} 10. O-O-O {[%clk 0:02:34.6]} 10... Qa5 {[%clk 0:01:36.9]} 11. Nd2
{[%clk 0:02:21.4]} 11... Rd8 {[%clk 0:01:21.4]} 12. Nc4 {[%clk 0:02:10.8]} 12...
Qc5 {[%clk 0:01:16.1]} 13. Be3 {[%clk 0:01:59.2]} 13... Qb4 {[%clk 0:01:10]} 14.
a3 {[%clk 0:01:58.3]} 14... Bxe4 {[%clk 0:01:04.1]} 15. Nxe4 {[%clk 0:01:44.2]}
1-0

[Event "Early-Titled-Tuesday-Blitz-February-13-2024"]
[Site "Chess.com"]
[Date "2024.02.13"]
[Round "1"]
[White "esrosenberg"]
[Black "Agibileg"]
[Result "0-1"]
[WhiteElo "2412"]
[BlackElo "2745"]
[TimeControl "180+1"]
[EndTime "8:04:13 PST"]
[Termination "Agibileg won by resignation"]

1. Nf3 {[%clk 0:02:59.6]} 1... Nf6 {[%clk 0:02:59.1]} 2. c4 {[%clk 0:02:55.6]}
2... c5 {[%clk 0:02:58.1]} 3. Nc3 {[%clk 0:02:54.9]} 3... g6 {[%clk 0:02:57.1]}
4. g3 {[%clk 0:02:49.5]} 4... Bg7 {[%clk 0:02:57.5]} 5. Bg2 {[%clk 0:02:50.1]}
5... O-O {[%clk 0:02:54.9]} 6. O-O {[%clk 0:02:50.6]} 6... Nc6 {[%clk
0:02:45.5]} 7. d4 {[%clk 0:02:47.2]} 7... cxd4 {[%clk 0:02:46.4]} 8. Nxd4 {[%clk
0:02:47.8]} 8... Qa5 {[%clk 0:02:47]} 9. Nb3 {[%clk 0:02:45.5]} 9... Qb4 {[%clk
0:02:44.9]} 10. c5 {[%clk 0:02:30.6]} 10... b6 {[%clk 0:02:30.8]} 11. cxb6
{[%clk 0:02:28.4]} 11... axb6 {[%clk 0:02:22.5]} 12. a3 {[%clk 0:02:27.8]} 12...
Qg4 {[%clk 0:02:18.2]} 13. h3 {[%clk 0:02:27.3]} 13... Qh5 {[%clk 0:01:59.2]}
14. e3 {[%clk 0:02:20.2]} 14... Qe5 {[%clk 0:01:37.1]} 15. Nd5 {[%clk
0:02:13.6]} 15... Nxd5 {[%clk 0:01:33.9]} 16. Qxd5 {[%clk 0:02:13.2]} 16... Qc7
{[%clk 0:01:29.6]} 17. Rb1 {[%clk 0:02:07.9]} 17... Bb7 {[%clk 0:01:25]} 18. Bd2
{[%clk 0:02:06.3]} 18... Na5 {[%clk 0:01:24.5]} 19. Qb5 {[%clk 0:02:04.4]} 19...
Bxg2 {[%clk 0:01:23.9]} 20. Kxg2 {[%clk 0:02:04.3]} 20... Nc4 {[%clk 0:01:24]}
21. Bc3 {[%clk 0:02:03.5]} 21... Bxc3 {[%clk 0:01:22.5]} 22. bxc3 {[%clk
0:02:03.7]} 22... Nxa3 {[%clk 0:01:22.6]} 23. Qg5 {[%clk 0:01:57.7]} 23... Nxb1
{[%clk 0:01:21.5]} 24. Rxb1 {[%clk 0:01:58.6]} 24... Qc6+ {[%clk 0:01:14.6]} 25.
Kh2 {[%clk 0:01:57.9]} 25... Ra2 {[%clk 0:01:12.2]} 0-1

[Event "Early-Titled-Tuesday-Blitz-February-13-2024"]
[Site "Chess.com"]
[Date "2024.02.13"]
[Round "1"]
[White "rezamahdavi2008"]
[Black "Lion_DL"]
[Result "1-0"]
[WhiteElo "2833"]
[BlackElo "2464"]
[TimeControl "180+1"]
[EndTime "8:04:14 PST"]
[Termination "rezamahdavi2008 won by resignation"]

1. e4 {[%clk 0:02:50.4]} 1... c5 {[%clk 0:02:59.6]} 2. Nf3 {[%clk 0:02:48.7]}
2... e6 {[%clk 0:02:59.9]} 3. d4 {[%clk 0:02:47.4]} 3... cxd4 {[%clk 0:03:00.8]}
4. Nxd4 {[%clk 0:02:47.8]} 4... a6 {[%clk 0:03:01.5]} 5. c4 {[%clk 0:02:34.7]}
5... Nf6 {[%clk 0:03:01.1]} 6. Nc3 {[%clk 0:02:33.8]} 6... Qc7 {[%clk
0:03:01.8]} 7. a3 {[%clk 0:02:28.1]} 7... b6 {[%clk 0:03:01.6]} 8. Bd3 {[%clk
0:02:23]} 8... Bb7 {[%clk 0:03:01.3]} 9. O-O {[%clk 0:02:21.8]} 9... d6 {[%clk
0:03:01.4]} 10. Re1 {[%clk 0:02:19.9]} 10... Nbd7 {[%clk 0:03:00.9]} 11. Nd5
{[%clk 0:01:55.5]} 11... exd5 {[%clk 0:02:43.6]} 12. exd5+ {[%clk 0:01:56.4]}
12... Kd8 {[%clk 0:02:44]} 13. Bf4 {[%clk 0:01:53.2]} 13... Ne5 {[%clk 0:02:19]}
14. Rc1 {[%clk 0:01:48.7]} 14... Nxd3 {[%clk 0:01:55.8]} 15. Qxd3 {[%clk
0:01:49.6]} 15... g6 {[%clk 0:01:49.3]} 16. Bg5 {[%clk 0:01:46.3]} 16... Be7
{[%clk 0:01:44.6]} 17. Qf3 {[%clk 0:01:39]} 17... Ng8 {[%clk 0:01:26.9]} 18.
Qxf7 {[%clk 0:01:37.9]} 18... Bc8 {[%clk 0:01:15.5]} 19. Qf8+ {[%clk 0:01:33.6]}
1-0

[Event "Early-Titled-Tuesday-Blitz-February-13-2024"]
[Site "Chess.com"]
[Date "2024.02.13"]
[Round "1"]
[White "nicolasbatista3"]
[Black "AttackSparrow"]
[Result "0-1"]
[WhiteElo "2266"]
[BlackElo "2626"]
[TimeControl "180+1"]
[EndTime "8:04:18 PST"]
[Termination "AttackSparrow won by resignation"]

1. d4 {[%clk 0:02:55.3]} 1... d5 {[%clk 0:03:00]} 2. c4 {[%clk 0:02:53.4]} 2...
e6 {[%clk 0:03:00.5]} 3. Nc3 {[%clk 0:02:52.3]} 3... Nf6 {[%clk 0:03:00.9]} 4.
Bg5 {[%clk 0:02:51.6]} 4... Bb4 {[%clk 0:03:00.7]} 5. e3 {[%clk 0:02:48.2]} 5...
O-O {[%clk 0:02:51.7]} 6. Nf3 {[%clk 0:02:47.5]} 6... h6 {[%clk 0:02:50]} 7. Bh4
{[%clk 0:02:43.3]} 7... Nbd7 {[%clk 0:02:42.3]} 8. cxd5 {[%clk 0:02:40.1]} 8...
exd5 {[%clk 0:02:41.2]} 9. Bd3 {[%clk 0:02:39.9]} 9... c6 {[%clk 0:02:39.9]} 10.
Qc2 {[%clk 0:02:37.1]} 10... Re8 {[%clk 0:02:39]} 11. O-O-O {[%clk 0:02:31.8]}
11... Qa5 {[%clk 0:02:35.6]} 12. g4 {[%clk 0:02:24.2]} 12... Bxc3 {[%clk
0:02:33.7]} 13. bxc3 {[%clk 0:02:23.9]} 13... Ne4 {[%clk 0:02:32.3]} 14. Bxe4
{[%clk 0:02:17.3]} 14... dxe4 {[%clk 0:02:33.2]} 15. Nd2 {[%clk 0:02:16]} 15...
Nb6 {[%clk 0:02:26.8]} 16. g5 {[%clk 0:01:53]} 16... hxg5 {[%clk 0:02:24.2]} 17.
Bg3 {[%clk 0:01:52.8]} 17... Be6 {[%clk 0:02:14]} 18. Kb1 {[%clk 0:01:51.4]}
18... Na4 {[%clk 0:02:07]} 19. Rc1 {[%clk 0:01:51.6]} 19... Nxc3+ {[%clk
0:02:05.3]} 20. Ka1 {[%clk 0:01:47.9]} 20... Nxa2 {[%clk 0:02:02.3]} 21. Qc5
{[%clk 0:01:28.8]} 21... Qxd2 {[%clk 0:01:56.9]} 22. Rc2 {[%clk 0:01:22.4]}
22... Qb4 {[%clk 0:01:54.2]} 23. Qxg5 {[%clk 0:01:20.2]} 23... Nc3 {[%clk
0:01:54]} 0-1

[Event "Early-Titled-Tuesday-Blitz-February-13-2024"]
[Site "Chess.com"]
[Date "2024.02.13"]
[Round "1"]
[White "Arystanner"]
[Black "brunomorado"]
[Result "1-0"]
[WhiteElo "2815"]
[BlackElo "2449"]
[TimeControl "180+1"]
[EndTime "8:04:21 PST"]
[Termination "Arystanner won by resignation"]

1. c4 {[%clk 0:03:00.9]} 1... c6 {[%clk 0:01:19.7]} 2. e4 {[%clk 0:02:48.8]}
2... e5 {[%clk 0:01:18.2]} 3. Nf3 {[%clk 0:02:48.5]} 3... Nf6 {[%clk 0:01:16.6]}
4. Nxe5 {[%clk 0:02:39.2]} 4... d6 {[%clk 0:01:15]} 5. Nf3 {[%clk 0:02:38.5]}
5... Nxe4 {[%clk 0:01:14]} 6. Nc3 {[%clk 0:02:35.4]} 6... d5 {[%clk 0:01:05.3]}
7. Qe2 {[%clk 0:02:16.5]} 7... Qe7 {[%clk 0:00:40.9]} 8. cxd5 {[%clk 0:02:15.3]}
8... Nxc3 {[%clk 0:00:36.7]} 9. Qxe7+ {[%clk 0:02:16.2]} 9... Bxe7 {[%clk
0:00:37.1]} 10. dxc3 {[%clk 0:02:17.1]} 10... cxd5 {[%clk 0:00:37]} 11. Be3
{[%clk 0:02:17.3]} 11... Nc6 {[%clk 0:00:36.4]} 12. O-O-O {[%clk 0:02:16.6]}
12... Bg4 {[%clk 0:00:34.3]} 13. Rxd5 {[%clk 0:02:14.9]} 13... Bxf3 {[%clk
0:00:32.8]} 14. gxf3 {[%clk 0:02:14.6]} 14... O-O {[%clk 0:00:31.6]} 15. Rd7
{[%clk 0:02:11.3]} 1-0

[Event "Early-Titled-Tuesday-Blitz-February-13-2024"]
[Site "Chess.com"]
[Date "2024.02.13"]
[Round "1"]
[White "ChessLover0108"]
[Black "zubridis"]
[Result "1-0"]
[WhiteElo "2999"]
[BlackElo "2534"]
[TimeControl "180+1"]
[EndTime "8:04:26 PST"]
[Termination "ChessLover0108 won by checkmate"]

1. d4 {[%clk 0:02:58.8]} 1... e6 {[%clk 0:03:00.9]} 2. c4 {[%clk 0:02:58.9]}
2... b6 {[%clk 0:02:59.7]} 3. e4 {[%clk 0:02:56]} 3... Bb4+ {[%clk 0:02:58.4]}
4. Bd2 {[%clk 0:02:55.8]} 4... Bxd2+ {[%clk 0:02:57.1]} 5. Qxd2 {[%clk
0:02:56.7]} 5... Ne7 {[%clk 0:02:54.9]} 6. Nc3 {[%clk 0:02:56.1]} 6... d6 {[%clk
0:02:54.6]} 7. f4 {[%clk 0:02:52]} 7... O-O {[%clk 0:02:53.9]} 8. Nf3 {[%clk
0:02:51.9]} 8... Bb7 {[%clk 0:02:53.4]} 9. Bd3 {[%clk 0:02:51.2]} 9... Nd7
{[%clk 0:02:53.2]} 10. O-O-O {[%clk 0:02:43.4]} 10... e5 {[%clk 0:02:46.5]} 11.
dxe5 {[%clk 0:02:32.3]} 11... dxe5 {[%clk 0:02:17.2]} 12. Bc2 {[%clk 0:02:30.6]}
12... Nc5 {[%clk 0:02:13.1]} 13. Qf2 {[%clk 0:02:24]} 13... Qe8 {[%clk
0:02:09.2]} 14. Nxe5 {[%clk 0:02:24.1]} 14... Nc6 {[%clk 0:02:03.2]} 15. Nxc6
{[%clk 0:02:22]} 15... Bxc6 {[%clk 0:02:03.1]} 16. e5 {[%clk 0:02:22.6]} 16...
Qe6 {[%clk 0:01:56.7]} 17. Nd5 {[%clk 0:02:15.5]} 17... Rac8 {[%clk 0:01:23.5]}
18. f5 {[%clk 0:02:15.5]} 18... Qh6+ {[%clk 0:01:19.7]} 19. Kb1 {[%clk
0:02:14.7]} 19... Rfe8 {[%clk 0:01:20]} 20. Rhe1 {[%clk 0:02:08.5]} 20... Bd7
{[%clk 0:01:17.2]} 21. f6 {[%clk 0:02:03.2]} 21... c6 {[%clk 0:01:03.9]} 22.
Ne7+ {[%clk 0:01:58.8]} 22... Rxe7 {[%clk 0:01:03.9]} 23. fxe7 {[%clk
0:01:59.7]} 23... Qe6 {[%clk 0:01:04.1]} 24. Qh4 {[%clk 0:01:56.2]} 24... Re8
{[%clk 0:00:56]} 25. Qxh7# {[%clk 0:01:56]} 1-0

[Event "Early-Titled-Tuesday-Blitz-February-13-2024"]
[Site "Chess.com"]
[Date "2024.02.13"]
[Round "1"]
[White "bazar-wokzal"]
[Black "rikchessmx"]
[Result "1-0"]
[WhiteElo "2651"]
[BlackElo "2313"]
[TimeControl "180+1"]
[EndTime "8:04:38 PST"]
[Termination "bazar-wokzal won by resignation"]

1. e4 {[%clk 0:03:00.9]} 1... e5 {[%clk 0:02:57.7]} 2. Bc4 {[%clk 0:02:57.2]}
2... Nc6 {[%clk 0:02:58.1]} 3. f4 {[%clk 0:02:56.9]} 3... exf4 {[%clk
0:02:53.1]} 4. d4 {[%clk 0:02:56.6]} 4... g5 {[%clk 0:02:52.2]} 5. h4 {[%clk
0:02:55.6]} 5... Bg7 {[%clk 0:02:49.1]} 6. c3 {[%clk 0:02:53.4]} 6... h6 {[%clk
0:02:45.7]} 7. hxg5 {[%clk 0:02:53.6]} 7... hxg5 {[%clk 0:02:45.3]} 8. Rxh8
{[%clk 0:02:53.6]} 8... Bxh8 {[%clk 0:02:45.6]} 9. Qh5 {[%clk 0:02:53.6]} 9...
Qf6 {[%clk 0:02:45.2]} 10. e5 {[%clk 0:02:51.5]} 10... Nxe5 {[%clk 0:02:37.1]}
11. dxe5 {[%clk 0:02:50.1]} 11... Qxe5+ {[%clk 0:02:37.2]} 12. Kf1 {[%clk
0:02:43.4]} 12... d5 {[%clk 0:02:36.1]} 13. Nf3 {[%clk 0:02:41.2]} 13... Qg7
{[%clk 0:02:30.6]} 14. Bxd5 {[%clk 0:02:39.1]} 14... Nf6 {[%clk 0:02:22.4]} 15.
Bxf7+ {[%clk 0:02:35.3]} 15... Ke7 {[%clk 0:02:21.3]} 16. Qxg5 {[%clk
0:02:32.9]} 16... Qxf7 {[%clk 0:02:16.8]} 17. Bxf4 {[%clk 0:02:28.4]} 17... Qg7
{[%clk 0:02:13.1]} 18. Qe5+ {[%clk 0:02:16.9]} 18... Be6 {[%clk 0:02:08.7]} 19.
Ng5 {[%clk 0:01:57.1]} 19... Qg8 {[%clk 0:01:59.8]} 20. Qxc7+ {[%clk 0:01:56.6]}
20... Nd7 {[%clk 0:01:59.6]} 21. Nd2 {[%clk 0:01:41.6]} 21... Bf6 {[%clk
0:01:36.8]} 22. Qd6+ {[%clk 0:01:39.2]} 22... Ke8 {[%clk 0:01:26.6]} 23. Nxe6
{[%clk 0:01:34.8]} 23... Be7 {[%clk 0:01:25.5]} 24. Qd5 {[%clk 0:01:22.7]} 24...
Nb6 {[%clk 0:01:20.1]} 25. Nc7+ {[%clk 0:01:21.2]} 25... Kf8 {[%clk 0:01:18.7]}
26. Bh6+ {[%clk 0:01:21.4]} 1-0